{"text_format":"5","workbook":"xlsx","n_sheets":1,"sheets":["Sheet"],"props":{"creator":"openpyxl"},"read":"whole","date_system":"1900"}

{"sheet":"Sheet","index":0,"n_rows":484,"n_cols":17,"rows_kept":484}
["Osallistuu","Sukunimi","Etunimi","Seura","Maa","Sarja","Syntymävuosi","Sukupuoli","Vyöarvo","Puhelin","Email"]
[{"$nulls":3},"---",{"$f":"VLOOKUP(D2,$N:$O,2,FALSE)","v":null},{"$nulls":9},"USA","Kyllä","6k"]
[{"$nulls":3},"---",{"$f":"VLOOKUP(D3,$N:$O,2,FALSE)","v":null},{"$nulls":9},"BEL","Ei","5k"]
[{"$nulls":3},"---",{"$f":"VLOOKUP(D4,$N:$O,2,FALSE)","v":null},{"$nulls":9},"GBR",null,"4k"]
[{"$nulls":3},"---",{"$f":"VLOOKUP(D5,$N:$O,2,FALSE)","v":null},{"$nulls":9},"CZE","Mies","3k"]
[{"$nulls":3},"---",{"$f":"VLOOKUP(D6,$N:$O,2,FALSE)","v":null},{"$nulls":9},"NED","Nainen","2k"]
[{"$nulls":3},"---",{"$f":"VLOOKUP(D7,$N:$O,2,FALSE)","v":null},{"$nulls":9},"EST",null,"1k"]
[{"$nulls":3},"---",{"$f":"VLOOKUP(D8,$N:$O,2,FALSE)","v":null},{"$nulls":9},"FRA",null,"1d"]
[{"$nulls":3},"---",{"$f":"VLOOKUP(D9,$N:$O,2,FALSE)","v":null},{"$nulls":9},"GER",null,"2d"]
[{"$nulls":3},"---",{"$f":"VLOOKUP(D10,$N:$O,2,FALSE)","v":null},{"$nulls":9},"IND",null,"3d"]
[{"$nulls":3},"---",{"$f":"VLOOKUP(D11,$N:$O,2,FALSE)","v":null},{"$nulls":9},"ITA",null,"4d"]
[{"$nulls":3},"---",{"$f":"VLOOKUP(D12,$N:$O,2,FALSE)","v":null},{"$nulls":9},"POL",null,"5d"]
[{"$nulls":3},"---",{"$f":"VLOOKUP(D13,$N:$O,2,FALSE)","v":null},{"$nulls":9},"ESP",null,"6d"]
[{"$nulls":3},"---",{"$f":"VLOOKUP(D14,$N:$O,2,FALSE)","v":null},{"$nulls":9},"SWE",null,"7d"]
[{"$nulls":3},"---",{"$f":"VLOOKUP(D15,$N:$O,2,FALSE)","v":null},{"$nulls":9},"UKR",null,"8d"]
[{"$nulls":3},"---",{"$f":"VLOOKUP(D16,$N:$O,2,FALSE)","v":null},{"$nulls":8},"---","---",null,"9d"]
[{"$nulls":3},"---",{"$f":"VLOOKUP(D17,$N:$O,2,FALSE)","v":null},{"$nulls":8},"---","EST",null,"10d"]
[{"$nulls":3},"---",{"$f":"VLOOKUP(D18,$N:$O,2,FALSE)","v":null},{"$nulls":8},"ACM","BRA"]
[{"$nulls":3},"---",{"$f":"VLOOKUP(D19,$N:$O,2,FALSE)","v":null},{"$nulls":8},"Adazi","LAT"]
[{"$nulls":3},"---",{"$f":"VLOOKUP(D20,$N:$O,2,FALSE)","v":null},{"$nulls":8},"Ahjo Training Center","FIN"]
[{"$nulls":3},"---",{"$f":"VLOOKUP(D21,$N:$O,2,FALSE)","v":null},{"$nulls":8},"Aitado","EST"]
[{"$nulls":13},"Akagi","FIN"]
[{"$nulls":13},"Åkersberga JK","SWE"]
[{"$nulls":13},"Aktiv Judo","SWE"]
[{"$nulls":13},"Ålands Judoklubb","FIN"]
[{"$nulls":13},"Alingsås JK","SWE"]
[{"$nulls":13},"Älmhults JK","SWE"]
[{"$nulls":13},"Altia","EST"]
[{"$nulls":13},"Alūksne","LAT"]
[{"$nulls":13},"Amager Judo Skole","DEN"]
[{"$nulls":13},"Ånge JK","SWE"]
[{"$nulls":13},"Ängelholms JK","SWE"]
[{"$nulls":13},"Apatity JC N:o1","RUS"]
[{"$nulls":13},"April2000 Petrozavo","RUS"]
[{"$nulls":13},"Arboga JK","SWE"]
[{"$nulls":13},"Århus Judo Klub","DEN"]
[{"$nulls":13},"Arigato","EST"]
[{"$nulls":13},"Artest","EST"]
[{"$nulls":13},"Asahi Spordikool MTÜ","EST"]
[{"$nulls":13},"Asker Judoklubb","NOR"]
[{"$nulls":13},"ASKÖ Urfahr ","AUT"]
[{"$nulls":13},"Åtvidabergs JK","SWE"]
[{"$nulls":13},"Audentese Spordiklubi","EST"]
[{"$nulls":13},"Bålsta JK","SWE"]
[{"$nulls":13},"BK yoi Mullsjö","SWE"]
[{"$nulls":13},"BK-Judo","NOR"]
[{"$nulls":13},"Bodens Bushido Center","SWE"]
[{"$nulls":13},"Bodø Judo Club","NOR"]
[{"$nulls":13},"Bollnäs JK","SWE"]
[{"$nulls":13},"Boo KFUM","SWE"]
[{"$nulls":13},"Borås JK","SWE"]
[{"$nulls":13},"Borås Judo Club","SWE"]
[{"$nulls":13},"Borås Judo Club","SWE"]
[{"$nulls":13},"Borås Judo Club","SWE"]
[{"$nulls":13},"Borås Judoklubb","SWE"]
[{"$nulls":13},"Borlänge JK","SWE"]
[{"$nulls":13},"Brønshøj Judo Club","DEN"]
[{"$nulls":13},"Brønshøj Judo Club","DEN"]
[{"$nulls":13},"Budokan, Vaasa","FIN"]
[{"$nulls":13},"Budoklubben Mullsjö","SWE"]
[{"$nulls":13},"Budolinn","EST"]
[{"$nulls":13},"Bushinkan","EST"]
[{"$nulls":13},"Byakuya Sodankylä","FIN"]
[{"$nulls":13},"Carlshamn Judo","SWE"]
[{"$nulls":13},"Chehov","RUS"]
[{"$nulls":13},"Cheljabinsk Budokwest","RUS"]
[{"$nulls":13},"Chikara, H:ki","FIN"]
[{"$nulls":13},"Combat Society of Helsinki","FIN"]
[{"$nulls":13},"Dar Es Salaam Budokani","TAN"]
[{"$nulls":13},"Ekerö Budo","SWE"]
[{"$nulls":13},"Enbukan, Pietarsaari","FIN"]
[{"$nulls":13},"Enbukan, Pietarsaari","UKR"]
[{"$nulls":13},"Enighet Judo","SWE"]
[{"$nulls":13},"Eskilstuna JK","SWE"]
[{"$nulls":13},"Espoon JK","FIN"]
[{"$nulls":13},"Espoon judokerho","FIN"]
[{"$nulls":13},"Espoon Urheilijat","FIN"]
[{"$nulls":13},"Fagersta JK","SWE"]
[{"$nulls":13},"Falkenbergs JK","SWE"]
[{"$nulls":13},"Falu JK","SWE"]
[{"$nulls":13},"Färgelanda JK","SWE"]
[{"$nulls":13},"Fighters SC","SWE"]
[{"$nulls":13},"Finndai, H:ki","FIN"]
[{"$nulls":13},"Forshaga JK","SWE"]
[{"$nulls":13},"Fredericia Judo klub","DEN"]
[{"$nulls":13},"Fredericia Judo og Ju-Jutsu Klub","DEN"]
[{"$nulls":13},"Frölunda JK","SWE"]
[{"$nulls":13},"Frövi","SWE"]
[{"$nulls":13},"Frövi JK","SWE"]
[{"$nulls":13},"FUDOSHIN","LAT"]
[{"$nulls":13},"Fudoshin Rauma","FIN"]
[{"$nulls":13},"G K Shibu Gävle","SWE"]
[{"$nulls":13},"GAK Enighet","SWE"]
[{"$nulls":13},"Gävle Judo Club","SWE"]
[{"$nulls":13},"Gävle Tjäder Judo","SWE"]
[{"$nulls":13},"GF Idrott JK","SWE"]
[{"$nulls":13},"Gladiator Turku Judo-Samboseura","FIN"]
[{"$nulls":13},"Göteborgs JK","SWE"]
[{"$nulls":13},"Gribby JK","SWE"]
[{"$nulls":13},"Grums JK","SWE"]
[{"$nulls":13},"Gullmarens Judo klubb","SWE"]
[{"$nulls":13},"Gustafs JK","SWE"]
[{"$nulls":13},"Haatlet","ISR"]
[{"$nulls":13},"Habo JK","SWE"]
[{"$nulls":13},"Halahav","ISR"]
[{"$nulls":13},"Hallsta judo","SWE"]
[{"$nulls":13},"Halsnæs Martial Arts","DEN"]
[{"$nulls":13},"Hämeenlinnan JS","FIN"]
[{"$nulls":13},"Hammarö JK","SWE"]
[{"$nulls":13},"Hangon Hyrskyt / Tsukuri","FIN"]
[{"$nulls":13},"Hauve-Kan, Haukipudas","FIN"]
[{"$nulls":13},"Havsörnens JK","SWE"]
[{"$nulls":13},"Helsingborgs JK","SWE"]
[{"$nulls":13},"Helsingin Judosport","FIN"]
[{"$nulls":13},"Höganäs Budo","SWE"]
[{"$nulls":13},"Högdalens JK","SWE"]
[{"$nulls":13},"Holjutai, Hollola","FIN"]
[{"$nulls":13},"Hontai Judo, H:ki","FIN"]
[{"$nulls":13},"Höörs JK","SWE"]
[{"$nulls":13},"Horsens Judo Klub","DEN"]
[{"$nulls":13},"Hudiksvalls JK","SWE"]
[{"$nulls":13},"Hunnebo Judo","SWE"]
[{"$nulls":13},"Iceland Judo Federation","ISL"]
[{"$nulls":13},"IF Aktiv Ungdom Lidingö","SWE"]
[{"$nulls":13},"IF Dojo Norrköping","SWE"]
[{"$nulls":13},"IF Järfälla Judo","SWE"]
[{"$nulls":13},"Iisalmen JS","FIN"]
[{"$nulls":13},"IK Södra","SWE"]
[{"$nulls":13},"IK Västra Mölndal","SWE"]
[{"$nulls":13},"Imatran Sukoshi","FIN"]
[{"$nulls":13},"International Refugee Team","IOA"]
[{"$nulls":13},"Ippon/NTG","NOR"]
[{"$nulls":13},"Jämsän Yoshi","FIN"]
[{"$nulls":13},"JC Samourai","BEL"]
[{"$nulls":13},"Jelgavas Bērnu un jaunatnes sporta skola","LAT"]
[{"$nulls":13},"Jikan","LAT"]
[{"$nulls":13},"Jikan. Riga","LAT"]
[{"$nulls":13},"JJC Mendig","GER"]
[{"$nulls":13},"JJC Mendig/Coach","GER"]
[{"$nulls":13},"JK Aktiv","SWE"]
[{"$nulls":13},"JK Budo","SWE"]
[{"$nulls":13},"JK Jigo-Tai","SWE"]
[{"$nulls":13},"JK Jinkei","SWE"]
[{"$nulls":13},"JK Källan","SWE"]
[{"$nulls":13},"JK Kano","SWE"]
[{"$nulls":13},"JK Ki","SWE"]
[{"$nulls":13},"JK National","SWE"]
[{"$nulls":13},"JK Sakura","SWE"]
[{"$nulls":13},"Joen Yawara, Joensuu","FIN"]
[{"$nulls":13},"Jönköpings JK","SWE"]
[{"$nulls":13},"Joutsan Tarmo","FIN"]
[{"$nulls":13},"JS Sakura, Kuopio","FIN"]
[{"$nulls":13},"Judo 360","ISR"]
[{"$nulls":13},"Judo Arvika","SWE"]
[{"$nulls":13},"Judo Club Aris ","GRE"]
[{"$nulls":13},"Judo Club Aris ","GRE"]
[{"$nulls":13},"Judo club IPPON","LAT"]
[{"$nulls":13},"Judo Club Lyon Villeurbanne","FRA"]
[{"$nulls":13},"Judo Club Sundsvall","SWE"]
[{"$nulls":13},"Judo Club Van Horssen","FRA"]
[{"$nulls":13},"JUDO COPENHAGEN","DEN"]
[{"$nulls":13},"Judo Copenhagen","DEN"]
[{"$nulls":13},"Judo Lysekil","SWE"]
[{"$nulls":13},"Judo Union Kirchham ","AUT"]
[{"$nulls":13},"Judo Union Kirchham ","AUT"]
[{"$nulls":13},"Judo Union Kirchham ","AUT"]
[{"$nulls":13},"Judo-Kan, Espoo","FIN"]
[{"$nulls":13},"Judo-Sambo Medvezheg","RUS"]
[{"$nulls":13},"Judoclub Leipzig","GER"]
[{"$nulls":13},"Judodeild Selfoss","ISL"]
[{"$nulls":13},"Judofelag Reykjavikur","ISL"]
[{"$nulls":13},"Judokarhut","FIN"]
[{"$nulls":13},"Judokarhut","FIN"]
[{"$nulls":13},"Judoklubben Mitani","DEN"]
[{"$nulls":13},"Judoklubi Dokyo","EST"]
[{"$nulls":13},"Judoklubi Dokyo","EST"]
[{"$nulls":13},"Judoklubi Zen Tarto","EST"]
[{"$nulls":13},"Judoseura Pikadon ry","FIN"]
[{"$nulls":13},"Jushinkan, Ähtäri","FIN"]
[{"$nulls":13},"Jyväskylä Jigotai","FIN"]
[{"$nulls":13},"Kaarinan judoseura","FIN"]
[{"$nulls":13},"Kaigan, Rauma","FIN"]
[{"$nulls":13},"Kaisho Kampsport","SWE"]
[{"$nulls":13},"Kajaanin JK","FIN"]
[{"$nulls":13},"Kallinge Judoclub","SWE"]
[{"$nulls":13},"Kalmar Budoklubb","SWE"]
[{"$nulls":13},"Kampsportsklubben Mifuné","SWE"]
[{"$nulls":13},"Karelia","RUS"]
[{"$nulls":13},"Karijoen Tappara","FIN"]
[{"$nulls":13},"Karjaan Fuguda","FIN"]
[{"$nulls":13},"Karlskoga Budoklubb","SWE"]
[{"$nulls":13},"Karlskrona JK","SWE"]
[{"$nulls":13},"Karlstad JK","SWE"]
[{"$nulls":13},"Kauhajoen Karhu","FIN"]
[{"$nulls":13},"Kaustisen Pohjan-Veikot","FIN"]
[{"$nulls":13},"Kerimäen Judonoko","FIN"]
[{"$nulls":13},"Kibuvits SK","EST"]
[{"$nulls":13},"Kinnekulle Judo","SWE"]
[{"$nulls":13},"Kirishi","RUS"]
[{"$nulls":13},"Kirkkonummen JS","FIN"]
[{"$nulls":13},"Kita-Kan, Kemi","FIN"]
[{"$nulls":13},"Kitana JK i Åkersberga","SWE"]
[{"$nulls":13},"Kiteen Kippon","FIN"]
[{"$nulls":13},"Knisslinge BK","SWE"]
[{"$nulls":13},"Knivsta JK","SWE"]
[{"$nulls":13},"Kodokan Odense","DEN"]
[{"$nulls":13},"Kohila-Aitado","EST"]
[{"$nulls":13},"Kokkai-Kan, Tornio","FIN"]
[{"$nulls":13},"Kokkolan Budo","FIN"]
[{"$nulls":13},"Kokkolan Budo","MAR"]
[{"$nulls":13},"Kokkolan budo","CZE"]
[{"$nulls":13},"Konjo","FIN"]
[{"$nulls":13},"Köpings JK","SWE"]
[{"$nulls":13},"Korpeôla JK","SWE"]
[{"$nulls":13},"Kostomuksha Judo Team","RUS"]
[{"$nulls":13},"Kotkan JS","FIN"]
[{"$nulls":13},"Kouvolan Judoseura ","FIN"]
[{"$nulls":13},"Koyama, Rovaniemi","FIN"]
[{"$nulls":13},"Kristianstad JK","SWE"]
[{"$nulls":13},"Kristiinan Seudun Judo","FIN"]
[{"$nulls":13},"Kristinehamns JK KFUM","SWE"]
[{"$nulls":13},"Kungsbacka JK","SWE"]
[{"$nulls":13},"Kuopion JS Tomodachi","FIN"]
[{"$nulls":13},"Kurikan Seibukan","FIN"]
[{"$nulls":13},"Lahden JS","FIN"]
[{"$nulls":13},"Landvetter JK","SWE"]
[{"$nulls":13},"Långshyttans JK","SWE"]
[{"$nulls":13},"Lapinlahden JS Shiranami","FIN"]
[{"$nulls":13},"Lappajärven Veikot","FIN"]
[{"$nulls":13},"Lappeenrannan Kamiza","FIN"]
[{"$nulls":13},"Laukaan Darma-Kai","FIN"]
[{"$nulls":13},"Leegi","EST"]
[{"$nulls":13},"Lempäälän Syokonkan Judo","FIN"]
[{"$nulls":13},"Lenkai","RUS"]
[{"$nulls":13},"Lerums JK","SWE"]
[{"$nulls":13},"Levanger Judoklubb","NOR"]
[{"$nulls":13},"Levanger Judoklubb","NOR"]
[{"$nulls":13},"Lidköpings Budoklubb","SWE"]
[{"$nulls":13},"Lieksan Jigoku","FIN"]
[{"$nulls":13},"Lilla Edets JK","SWE"]
[{"$nulls":13},"Lindome JK","SWE"]
[{"$nulls":13},"Linköpings JK","SWE"]
[{"$nulls":13},"Ljungbyheds JK","SWE"]
[{"$nulls":13},"Ljusdals JK","SWE"]
[{"$nulls":13},"Loimaan Kamppailu-Urheilijat","FIN"]
[{"$nulls":13},"Loksa RSK","EST"]
[{"$nulls":13},"Loviisan S JS Arashi","FIN"]
[{"$nulls":13},"Ludvika JK","SWE"]
[{"$nulls":13},"LUGI","SWE"]
[{"$nulls":13},"Lugi JK","SWE"]
[{"$nulls":13},"Luleå JK","SWE"]
[{"$nulls":13},"Lyngby Judo klub","DEN"]
[{"$nulls":13},"Lyngby Judo og Ju-Jutsu Klub","DEN"]
[{"$nulls":13},"Lyngby Judo og Ju-Jutsu Klub","DEN"]
[{"$nulls":13},"M-Dojo","EST"]
[{"$nulls":13},"Magas","FIN"]
[{"$nulls":13},"Makita-BOSCH","LCA"]
[{"$nulls":13},"Malmö Budokan JK","SWE"]
[{"$nulls":13},"Mäntyharjun Judo","FIN"]
[{"$nulls":13},"Mariestads JK","SWE"]
[{"$nulls":13},"Märsta JK","SWE"]
[{"$nulls":13},"Maskun Tempo","FIN"]
[{"$nulls":13},"Mattmar Sport Klubb","SWE"]
[{"$nulls":13},"Meido-Kan, H:ki","FIN"]
[{"$nulls":13},"Mikado","EST"]
[{"$nulls":13},"Mikata","EST"]
[{"$nulls":13},"Mikkelin Judo","FIN"]
[{"$nulls":13},"Miyama Ryu Judo Club","SWE"]
[{"$nulls":13},"Molkom JK","SWE"]
[{"$nulls":13},"Mölntorps IK Judo","SWE"]
[{"$nulls":13},"Moscow JC No25","RUS"]
[{"$nulls":13},"Murmansk","RUS"]
[{"$nulls":13},"Musubi dojo, Löddeköppinge","SWE"]
[{"$nulls":13},"Nacka JK","SWE"]
[{"$nulls":13},"Narvskaja Zastava","RUS"]
[{"$nulls":13},"Nässjö Kampsport/Judo","SWE"]
[{"$nulls":13},"National team","NOR"]
[{"$nulls":13},"Ness Ziyona","ISR"]
[{"$nulls":13},"Ninjudo","FIN"]
[{"$nulls":13},"NJJK","NOR"]
[{"$nulls":13},"Nokian Judo","FIN"]
[{"$nulls":13},"Norrköpings JK","SWE"]
[{"$nulls":13},"Norrtälje JK","SWE"]
[{"$nulls":13},"Novgorod","RUS"]
[{"$nulls":13},"Nummelan Judo","FIN"]
[{"$nulls":13},"Nybro Judo Klubb","SWE"]
[{"$nulls":13},"Nyköpings JK","SWE"]
[{"$nulls":13},"Olimp Tver","RUS"]
[{"$nulls":13},"Olimpiiskie Nadejdi","RUS"]
[{"$nulls":13},"Olimpiyskie nadezdy","RUS"]
[{"$nulls":13},"Olofströms JK","SWE"]
[{"$nulls":13},"Olümpiko Spordiklubi","EST"]
[{"$nulls":13},"Olympic Hopes St.Peterburg","RUS"]
[{"$nulls":13},"Ookami","EST"]
[{"$nulls":13},"Örebro Judo","SWE"]
[{"$nulls":13},"Orimattilan JS","FIN"]
[{"$nulls":13},"Orimattilan JS","BDI"]
[{"$nulls":13},"Österlen Budoklubb","SWE"]
[{"$nulls":13},"Östersunds JK","SWE"]
[{"$nulls":13},"Oulun JK","FIN"]
[{"$nulls":13},"Oulun Kamppailuklubi","FIN"]
[{"$nulls":13},"Oxelösunds JK","SWE"]
[{"$nulls":13},"Oxelösunds judoklubb","SWE"]
[{"$nulls":13},"Oyus Judojaos","FIN"]
[{"$nulls":13},"Palermo Spordiklubi","EST"]
[{"$nulls":13},"Pärnu Džuudoklubi Kempo","EST"]
[{"$nulls":13},"Pärnu Samurai","EST"]
[{"$nulls":13},"Perstorp Budoklubb","SWE"]
[{"$nulls":13},"Petäjäveden Kamppailijat","FIN"]
[{"$nulls":13},"Pi, København Judo","DEN"]
[{"$nulls":13},"Ping-Viinit, Nurmijärvi","FIN"]
[{"$nulls":13},"Piteå JK","SWE"]
[{"$nulls":13},"Pobeda St.Peterburg","RUS"]
[{"$nulls":13},"Põhjakotkas","EST"]
[{"$nulls":13},"Pole Espoir BFC Judo","FRA"]
[{"$nulls":13},"Polish National Junior Judo Team","---"]
[{"$nulls":13},"Polish National Junior Judo Team","---"]
[{"$nulls":13},"Polish National Junior Judo Team","POL"]
[{"$nulls":13},"Polish National Junior Judo Team","POL"]
[{"$nulls":13},"Polish National Junior Judo Team","POL"]
[{"$nulls":13},"Polish National Junior Judo Team","POL"]
[{"$nulls":13},"Polish National Junior Judo Team","POL"]
[{"$nulls":13},"Polyrnye Zori","RUS"]
[{"$nulls":13},"Popinniemen Isku","FIN"]
[{"$nulls":13},"Porin JS Fudoshin","FIN"]
[{"$nulls":13},"PSV Schwerin","GER"]
[{"$nulls":13},"qui","PYF"]
[{"$nulls":13},"Raahen Judo","FIN"]
[{"$nulls":13},"Raision Ryhti","FIN"]
[{"$nulls":13},"Randori Leipzig-West","GER"]
[{"$nulls":13},"Rapatac, Gävle","SWE"]
[{"$nulls":13},"Rapla Judoklubi","EST"]
[{"$nulls":13},"Rättviks JK","SWE"]
[{"$nulls":13},"RIG","SWE"]
[{"$nulls":13},"Riihimäen JS","FIN"]
[{"$nulls":13},"Rimbo JK","SWE"]
[{"$nulls":13},"Rosich","RUS"]
[{"$nulls":13},"Rubin","RUS"]
[{"$nulls":13},"Saimaan Judo","FIN"]
[{"$nulls":13},"Sakura Judoklubb Göteborg","SWE"]
[{"$nulls":13},"Salon Budoseura","FIN"]
[{"$nulls":13},"Saltsjö JK","SWE"]
[{"$nulls":13},"Sambo-70 Moscow","RUS"]
[{"$nulls":13},"Sambo-JC, Petroskoi","RUS"]
[{"$nulls":13},"SAMURS","LAT"]
[{"$nulls":13},"SAMURS","LAT"]
[{"$nulls":13},"SAMURS","LAT"]
[{"$nulls":13},"Sande SK Judo","NOR"]
[{"$nulls":13},"Sangmukwan Finland ry","FIN"]
[{"$nulls":13},"Savonlinnan Shikata","FIN"]
[{"$nulls":13},"SC Sambo-Ring","RUS"]
[{"$nulls":13},"SC Wuppertal","GER"]
[{"$nulls":13},"Sdush","RUS"]
[{"$nulls":13},"Seinäjoen JS","FIN"]
[{"$nulls":13},"Seiryoku Zenyo Judo Sala","SWE"]
[{"$nulls":13},"Sensei Judokool","EST"]
[{"$nulls":13},"Sergiev-Posad","RUS"]
[{"$nulls":13},"Sestroretsk","RUS"]
[{"$nulls":13},"Sevzapkanat","RUS"]
[{"$nulls":13},"Shehov","RUS"]
[{"$nulls":13},"Shinrai, Pirkkala","FIN"]
[{"$nulls":13},"Shirokawa, Porvoo","FIN"]
[{"$nulls":13},"Sigtuna JK","SWE"]
[{"$nulls":13},"Siuntion Keido-kan","FIN"]
[{"$nulls":13},"Sjelle-Skørring Idrætsforening","DEN"]
[{"$nulls":13},"SK Naiss","EST"]
[{"$nulls":13},"Skara JK","SWE"]
[{"$nulls":13},"Skellefteå JK","SWE"]
[{"$nulls":13},"Skinnsbergs JK","SWE"]
[{"$nulls":13},"Skövde JK","SWE"]
[{"$nulls":13},"Sobudo","FIN"]
[{"$nulls":13},"Söderhamns JK","SWE"]
[{"$nulls":13},"Södertälje JK","SWE"]
[{"$nulls":13},"Södra Sandby JK","SWE"]
[{"$nulls":13},"Sollefteå JK","SWE"]
[{"$nulls":13},"Solna Judo Club","SWE"]
[{"$nulls":13},"Sosnovyi Bor","RUS"]
[{"$nulls":13},"Sotenäs JK","SWE"]
[{"$nulls":13},"SPARS Ventspils","LAT"]
[{"$nulls":13},"Spartak Vyborg","RUS"]
[{"$nulls":13},"SPIF Judo","SWE"]
[{"$nulls":13},"Spordiklubi Afina","EST"]
[{"$nulls":13},"Spordiklubi Barra","EST"]
[{"$nulls":13},"Spordiklubi Buffen-Do","EST"]
[{"$nulls":13},"Spordiklubi Dodze","EST"]
[{"$nulls":13},"Spordiklubi Dvigatel","EST"]
[{"$nulls":13},"Spordiklubi Evail-Athletics","EST"]
[{"$nulls":13},"Spordiklubi Ippon","EST"]
[{"$nulls":13},"Spordiklubi Sakura","EST"]
[{"$nulls":13},"Spordiklubi Tõll","EST"]
[{"$nulls":13},"Spordiklubi Viru Judo","EST"]
[{"$nulls":13},"Sport club Achilles","FIN"]
[{"$nulls":13},"Sportpalatset Örebro Budo","SWE"]
[{"$nulls":13},"St Petersburg","RUS"]
[{"$nulls":13},"St.Peterburg JC No1","RUS"]
[{"$nulls":13},"St.Peterburg JC No2","RUS"]
[{"$nulls":13},"Staffanstorp Judoklubb","SWE"]
[{"$nulls":13},"Staffanstorps JK","SWE"]
[{"$nulls":13},"Stenungsunds JK","SWE"]
[{"$nulls":13},"Stockholms JK","SWE"]
[{"$nulls":13},"Stockholms Judo Dojo","SWE"]
[{"$nulls":13},"Svendborg Judo klub","DEN"]
[{"$nulls":13},"Täby JK","SWE"]
[{"$nulls":13},"Takedown JK Malmö","SWE"]
[{"$nulls":13},"Tallinn Sports Academy","EST"]
[{"$nulls":13},"Tallinn Sports Academy","EST"]
[{"$nulls":13},"Tallinn Sports Academy","AZE"]
[{"$nulls":13},"Tammelan Jundokan","FIN"]
[{"$nulls":13},"Tampereen Judo","FIN"]
[{"$nulls":13},"Tampereen Judo ","COL"]
[{"$nulls":13},"Tampereen Judo ","---"]
[{"$nulls":13},"Tampereen Judo ","UKR"]
[{"$nulls":13},"Tampereen Judo Ry","PER"]
[{"$nulls":13},"TARGIM","FIN"]
[{"$nulls":13},"Tarto Do","EST"]
[{"$nulls":13},"Tartto Zen","EST"]
[{"$nulls":13},"Tcherepovets","RUS"]
[{"$nulls":13},"Team Denmark","DEN"]
[{"$nulls":13},"Team Greece","GRE"]
[{"$nulls":13},"Team Israel","ISR"]
[{"$nulls":13},"Team Judo Göteborg","SWE"]
[{"$nulls":13},"Team Slovenia","SLO"]
[{"$nulls":13},"Tesuto Kurabu","JPN"]
[{"$nulls":13},"Tierps JK","SWE"]
[{"$nulls":13},"Tikkurilan Judokat","FIN"]
[{"$nulls":13},"Tikkurilan Judokat","---"]
[{"$nulls":13},"Tohmajärven urheilijat","FIN"]
[{"$nulls":13},"Toni Judokool","EST"]
[{"$nulls":13},"Toodokan, Joroinen","FIN"]
[{"$nulls":13},"Tosno","RUS"]
[{"$nulls":13},"Trelleborgs Budokai","SWE"]
[{"$nulls":13},"Trollhättans JK","SWE"]
[{"$nulls":13},"Trollhättans Judoklubb","SWE"]
[{"$nulls":13},"Trosa Vagnhärad KF","SWE"]
[{"$nulls":13},"Tumba JK","SWE"]
[{"$nulls":13},"Turun ju-jutsuseura","FIN"]
[{"$nulls":13},"Turun Judoseura","FIN"]
[{"$nulls":13},"Turun Judoseura","---"]
[{"$nulls":13},"Tver","RUS"]
[{"$nulls":13},"Tyresö Judo Klubb","SWE"]
[{"$nulls":13},"Tyrvään Juro","FIN"]
[{"$nulls":13},"Uddevalla JK","SWE"]
[{"$nulls":13},"Ühendus Maardu Sport","EST"]
[{"$nulls":13},"UJZ Mühlviertel","AUT"]
[{"$nulls":13},"Umeå JK","SWE"]
[{"$nulls":13},"Upplands Väsby JK","SWE"]
[{"$nulls":13},"Uppsala JK","SWE"]
[{"$nulls":13},"Uppsala Norra Judo","SWE"]
[{"$nulls":13},"V.Zelonija sporta skola","LAT"]
[{"$nulls":13},"V.Zelonija sporta skola","LAT"]
[{"$nulls":13},"Valby Judoklub ","DEN"]
[{"$nulls":13},"Valkeakosken JS Samurai","FIN"]
[{"$nulls":13},"Vänersborgs JK","SWE"]
[{"$nulls":13},"Vantaan Jukara","FIN"]
[{"$nulls":13},"Vara Judoklubb","SWE"]
[{"$nulls":13},"Varbergs JK","SWE"]
[{"$nulls":13},"Västbo JK","SWE"]
[{"$nulls":13},"Västerås JK","SWE"]
[{"$nulls":13},"Västerås Judo Skola","SWE"]
[{"$nulls":13},"Västerås judoclubb","SWE"]
[{"$nulls":13},"Västerviks JK","SWE"]
[{"$nulls":13},"Växjö JK","SWE"]
[{"$nulls":13},"Vejle Judo Klub","DEN"]
[{"$nulls":13},"Vellinge Budo","SWE"]
[{"$nulls":13},"Vidzemes DS","LAT"]
[{"$nulls":13},"Vihannin Judo","FIN"]
[{"$nulls":13},"Vilhelmina JK","SWE"]
[{"$nulls":13},"Viljandi Spordiklubi Taifu","EST"]
[{"$nulls":13},"Voimailuseura Bodonos","FIN"]
[{"$nulls":13},"Volna St.Peterburg","RUS"]
[{"$nulls":13},"Vologda","RUS"]
[{"$nulls":13},"Võru Judoklubi Rei","EST"]
[{"$nulls":13},"Voshod Sestroretsk","RUS"]
[{"$nulls":13},"Waseda Club, Uusikaupunki","FIN"]
[{"$nulls":13},"Waseda-club ry","ITA"]
[{"$nulls":13},"Waseda-club, Uusikaupunki ","ITA"]
[{"$nulls":13},"Washi Judo klub","DEN"]
[{"$nulls":13},"Wemmenhögs BF","SWE"]
[{"$nulls":13},"Windsor Judo Club","GBR"]
[{"$nulls":13},"Yama-Arashi, Varkaus","FIN"]
[{"$nulls":13},"Yanagi, Heinävesi","FIN"]
[{"$nulls":13},"Ystad Budoklubb","SWE"]
[{"$nulls":13},"Zulu","TAN"]
[{"$nulls":13},"Роке","TJK"]